bitfinex/quotes_SOLUSD_20251126
["timestamp","ask_amount","ask_price","bid_price","bid_amount"]
[1764179849155,10.27591002,140.93,140.91,6.9869977]
[1764179849355,29.01880892,140.92,140.81,50.0]
[1764179849557,8.80994492,140.88,140.85,6.9869977]
[1764179849876,25.11880892,140.89,140.86,6.9869977]
[1764179850054,3.18,140.88,140.82,0.66]
[1764179850254,24.84560232,140.87,140.85,6.9869977]
[1764179850670,25.56560232,140.87,140.85,6.9869977]
[1764179850888,25.56560232,140.87,140.82,0.66]
[1764179851089,25.56560232,140.87,140.85,6.9869977]
[1764179851470,0.72,140.86,140.85,6.9869977]
[1764179851885,24.84560232,140.87,140.85,6.9869977]
[1764179852085,25.56560232,140.87,140.85,6.9869977]
[1764179852381,33.65554724,140.87,140.86,6.9869977]
[1764179852582,7.09874352,140.87,140.83,7.76073508]
[1764179852782,8.80994492,140.92,140.86,6.9869977]
[1764179852987,3.18,140.91,140.9,6.9869977]
[1764179853189,3.18,140.91,140.89,6.9869977]
[1764179853371,0.72,140.9,140.81,116.308864]
[1764179853573,0.72,140.9,140.87,6.9869977]
[1764179853774,0.72,140.9,140.88,6.9869977]
[1764179854374,7.09773582,140.89,140.88,6.9869977]
[1764179855174,7.09773582,140.89,140.86,0.66]
[1764179855376,7.09773582,140.89,140.88,6.9869977]
[1764179855894,24.84207537,140.89,140.88,6.9869977]
[1764179856490,17.74433955,140.89,140.88,6.9869977]
[1764179857293,27.27428447,140.89,140.79,137.2455633]
[1764179857585,12.70994492,140.88,140.85,6.9869977]
[1764179857888,12.70994492,140.88,140.81,0.66]
[1764179858088,12.70994492,140.88,140.85,6.9869977]
[1764179858290,12.70994492,140.88,140.86,6.9869977]
[1764179858490,8.80994492,140.86,140.78,0.66]
[1764179858694,8.80994492,140.84,140.81,6.9869977]
[1764179858872,8.80994492,140.84,140.8,6.9869977]
[1764179859181,0.72,140.83,140.8,6.9869977]
[1764179859867,3.18,140.82,140.8,6.9869977]
[1764179860597,3.18,140.82,140.81,6.9869977]
[1764179860772,10.28126402,140.82,140.81,6.9869977]
[1764179861387,10.28126402,140.82,140.78,0.66]
[1764179861592,7.10089015,140.83,140.81,6.9869977]
[1764179861906,7.10089015,140.83,140.82,6.9869977]
[1764179862096,7.10089015,140.83,140.78,50.66]
[1764179862298,7.10089015,140.83,140.82,6.9869977]
[1764179862507,7.10089015,140.83,140.79,0.66]
[1764179862998,25.5727896,140.83,140.81,6.9869977]
[1764179863498,24.8527896,140.83,140.81,6.9869977]
[1764179864275,7.10089015,140.83,140.82,6.9869977]
[1764179864698,10.28047275,140.84,140.82,6.9869977]
[1764179865695,10.28047275,140.84,140.83,6.9869977]
[1764179866118,28.03111177,140.84,140.82,6.9869977]
[1764179866700,24.85111177,140.84,140.82,6.9869977]
[1764179866906,10.28075978,140.83,140.82,6.9869977]
[1764179867618,24.85265923,140.83,140.76,67.76072747]
[1764179867919,7.10075978,140.83,140.81,6.9869977]
[1764179868320,7.10075978,140.83,140.79,0.66]
[1764179868618,7.10075978,140.83,140.81,6.9869977]
[1764179868818,24.85265923,140.83,140.81,6.9869977]
[1764179869190,7.10075978,140.83,140.81,6.9869977]
[1764179869506,7.10075978,140.83,140.82,7.6469977]
[1764179869715,7.10075978,140.83,140.82,6.9869977]
[1764179869906,10.28048316,140.84,140.82,7.6469977]
[1764179870108,3.18,140.84,140.83,6.9869977]
[1764179870309,9.46994492,140.86,140.83,6.9869977]
[1764179870310,3.18,140.85,140.83,6.9869977]
[1764179871217,8.80994492,140.87,140.84,7.6469977]
[1764179871421,3.18,140.86,140.85,6.9869977]
[1764179871623,1.99999999,140.98,140.82,50.0]
[1764179871825,8.80994492,140.87,140.83,6.9869977]
[1764179872010,3.18,140.86,140.84,6.9869977]
[1764179872323,3.84,140.89,140.85,6.9869977]
[1764179872496,3.84,140.89,140.86,6.9869977]
[1764179873009,7.09823963,140.88,140.84,0.66]
[1764179873326,7.75823963,140.88,140.85,6.9869977]
[1764179873826,24.84383872,140.88,140.86,6.9869977]
[1764179874396,24.84383872,140.88,140.87,6.9869977]
[1764179874598,7.09823963,140.88,140.87,6.9869977]
[1764179877424,7.09793445,140.89,140.87,7.6469977]
[1764179877626,7.09793445,140.89,140.88,7.6469977]
[1764179878001,7.09793445,140.89,140.88,6.9869977]
[1764179878923,24.84087072,140.9,140.88,6.9869977]
[1764179879225,24.84087072,140.9,140.89,6.9869977]
[1764179880130,7.09723207,140.9,140.89,6.9869977]
[1764179880311,7.09693146,140.91,140.89,7.6469977]
[1764179880626,7.09693146,140.91,140.9,7.6469977]
[1764179881046,7.09693146,140.91,140.9,6.9869977]
[1764179881433,24.83744784,140.92,140.9,6.9869977]
[1764179881638,25.49744784,140.92,140.88,0.66]
[1764179881969,24.83744784,140.92,140.91,6.9869977]
[1764179882555,24.83744784,140.92,140.91,12.17082946]
[1764179882743,8.80994492,140.91,140.87,12.17082946]
[1764179882946,3.18,140.9,140.89,12.17082946]
[1764179883142,3.18,140.9,140.85,0.66]
[1764179883441,10.27723207,140.9,140.89,12.17082946]
[1764179884239,7.09691893,140.91,140.89,12.17082946]
[1764179884437,7.09691893,140.91,140.9,12.17082946]
[1764179884647,7.09691893,140.91,140.9,4.58763599]
[1764179885235,10.27643974,140.92,140.9,5.24763599]
[1764179885560,7.09585517,140.93,140.91,5.24763599]
[1764179885729,10.27542287,140.94,140.92,4.58763599]
[1764179885930,10.27542287,140.94,140.93,4.58763599]
[1764179886142,32.21372133,140.95,140.93,4.58763599]
[1764179886352,36.09372133,140.95,140.93,4.58763599]
[1764179886634,36.09372133,140.95,140.93,12.16728028]
[1764179887265,36.09372133,140.95,140.94,12.16728028]
[1764179887266,7.09491241,140.95,140.94,12.16728028]
[1764179887934,10.27430167,140.96,140.94,12.16728028]
[1764179888150,10.27430167,140.96,140.95,12.16728028]
[1764179888353,3.18,140.96,140.95,12.16728028]
[1764179888578,0.1,140.97,140.95,12.86728028]
[1764179888767,7.19385529,140.97,140.96,12.16728028]
[1764179888970,7.19385529,140.97,140.95,12.16728028]
[1764179889375,7.19385529,140.97,140.96,12.16728028]
[1764179889768,24.92812499,140.97,140.95,12.16728028]
[1764179889970,7.19385529,140.97,140.95,12.16728028]
[1764179890174,7.19385529,140.97,140.96,12.16728028]
[1764179890375,0.1,140.97,140.96,12.16728028]
[1764179890698,7.89370788,140.97,140.96,12.16728028]
[1764179891074,7.19370788,140.97,140.96,12.16728028]
[1764179891888,7.19370788,140.97,140.93,0.7]
[1764179892067,7.19370788,140.97,140.96,12.16728028]
[1764179892781,25.62797758,140.97,140.93,0.7]
[1764179892989,24.92797758,140.97,140.96,12.16728028]
[1764179893382,24.92797758,140.97,140.93,0.7]
[1764179893585,24.92797758,140.97,140.96,12.16728028]
[1764179894163,24.92797758,140.97,140.95,12.16728028]
[1764179895576,0.68,140.96,140.93,12.16728028]
[1764179895970,10.27471443,140.95,140.93,12.16728028]
[1764179896173,7.09471443,140.95,140.94,12.88728028]
[1764179896492,7.09471443,140.95,140.92,0.72]
[1764179896676,24.83150052,140.95,140.9,7.09700758]
[1764179896881,24.83150052,140.95,140.92,0.72]
[1764179897081,24.83150052,140.95,140.94,12.16728028]
[1764179897893,25.51150052,140.95,140.94,12.16728028]
[1764179898193,7.09471443,140.95,140.94,12.16728028]
[1764179898689,7.09471443,140.95,140.94,12.88728028]
[1764179899284,7.09471443,140.95,140.94,12.16728028]
[1764179899996,7.09421112,140.96,140.94,12.16728028]
[1764179900201,7.09421112,140.96,140.95,12.16728028]
[1764179901269,24.82973892,140.96,140.92,0.72]
[1764179901468,24.82973892,140.96,140.95,12.16728028]
[1764179901698,24.82973892,140.96,140.92,0.72]
[1764179901907,24.82973892,140.96,140.95,12.16728028]
[1764179902876,7.09421112,140.96,140.95,12.16728028]
[1764179904012,16.58415604,140.96,140.94,12.16728028]
[1764179904210,12.66994492,140.95,140.89,0.72]
[1764179904519,12.66994492,140.95,140.9,0.72]
[1764179904827,12.66994492,140.95,140.93,12.16728028]
[1764179905026,3.18,140.95,140.94,12.16728028]
[1764179905215,10.27471443,140.95,140.94,12.16728028]
[1764179906109,10.95471443,140.95,140.94,12.16728028]
[1764179906309,10.27471443,140.95,140.94,12.16728028]
[1764179906524,3.18,140.95,140.94,12.16728028]
[1764179906825,10.27471443,140.95,140.94,12.16728028]
[1764179907024,10.95471443,140.95,140.94,12.16728028]
[1764179907412,10.27471443,140.95,140.94,12.16728028]
[1764179908426,10.95471443,140.95,140.94,12.16728028]
[1764179908638,10.27471443,140.95,140.94,12.16728028]
[1764179909530,3.18,140.95,140.94,12.16728028]
[1764179910317,36.82144544,140.95,140.88,3.18]
[1764179910526,9.48994492,140.94,140.91,12.16728028]
[1764179910828,9.48994492,140.94,140.92,12.16728028]
[1764179911009,7.09572128,140.93,140.92,12.16728028]
[1764179912036,7.77572128,140.93,140.92,12.16728028]
[1764179913243,7.09572128,140.93,140.92,12.16728028]
[1764179913419,25.51502448,140.93,140.88,0.72]
[1764179913620,25.51502448,140.93,140.91,12.16728028]
[1764179913929,24.83502448,140.93,140.92,12.16728028]
[1764179914225,7.09572128,140.93,140.92,12.16728028]
[1764179914936,7.09534467,140.94,140.92,0.72]
[1764179915246,7.09534467,140.94,140.93,12.16728028]
[1764179915426,24.8322773,140.95,140.93,12.16728028]
[1764179915617,25.5122773,140.95,140.94,12.16728028]
[1764179915819,24.8322773,140.95,140.94,12.16728028]
[1764179916746,7.77471443,140.95,140.94,12.16728028]
[1764179916921,7.09471443,140.95,140.94,12.16728028]
[1764179917816,26.58321583,140.96,140.94,12.16728028]
[1764179918426,27.26321583,140.96,140.94,12.16728028]
[1764179918731,10.95435183,140.96,140.94,12.16728028]
[1764179922336,7.09435183,140.96,140.94,12.88728028]
[1764179922719,7.77435183,140.96,140.94,12.16728028]
[1764179923644,25.50987963,140.96,140.94,12.16728028]
[1764179924235,25.50987963,140.96,140.92,0.72]
[1764179924450,25.50987963,140.96,140.94,12.16728028]
[1764179924750,7.09435183,140.96,140.95,12.16728028]
[1764179924926,7.76435183,140.96,140.95,12.16728028]
[1764179925127,7.09435183,140.96,140.93,0.69]
[1764179925326,7.09435183,140.96,140.95,12.16728028]
[1764179926020,7.09435183,140.96,140.95,12.85728028]
[1764179926758,0.1,140.97,140.95,19.95194135]
[1764179926933,0.1,140.97,140.96,12.85728028]
[1764179928161,0.1,140.99,140.98,50.0]
[1764179928452,0.1,141.0,140.99,7.09270161]
[1764179928628,0.1,141.02,140.99,12.36109285]
[1764179928832,0.1,141.02,141.01,4.57839124]
[1764179929250,0.1,141.02,141.01,0.69]
[1764179929452,0.1,141.02,141.01,5.26839124]
[1764179931038,0.1,141.02,141.01,4.57839124]
[1764179931242,7.86119273,141.02,141.01,4.57839124]
[1764179931646,7.19119273,141.02,141.01,4.57839124]
[1764179931854,7.86119273,141.02,140.99,4.57839124]
[1764179932031,7.19119273,141.02,140.99,5.26839124]
[1764179932232,0.1,141.02,140.98,3.18]
[1764179932433,7.86129933,141.02,140.99,4.57839124]
[1764179932958,0.1,141.02,140.99,5.26839124]
[1764179933158,0.1,141.02,141.0,4.57839124]
[1764179933342,0.1,141.02,141.0,5.26839124]
[1764179933738,0.1,141.02,141.01,5.26839124]
[1764179934759,7.19119273,141.02,140.98,0.69]
[1764179934935,7.86119273,141.02,140.99,4.57839124]
[1764179935133,7.86119273,141.02,140.98,0.69]
[1764179935369,7.86119273,141.02,140.99,4.57839124]
[1764179935540,7.86119273,141.02,141.0,4.57839124]
[1764179936865,0.1,141.02,141.01,4.57839124]
[1764179937736,0.1,141.02,141.0,5.26839124]
[1764179938654,0.1,141.02,141.01,4.57839124]
[1764179939162,7.19119273,141.02,140.98,0.69]
[1764179939349,25.58917457,141.02,140.97,4.57839124]
[1764179939545,9.47994492,141.01,140.97,4.57839124]
[1764179939866,3.85,141.01,140.98,4.57839124]
[1764179940470,3.85,141.01,140.96,4.57839124]
[1764179940471,7.09270161,140.99,140.96,4.57839124]
[1764179940842,7.76270161,140.99,140.95,0.69]
[1764179941040,7.76270161,140.99,140.96,4.57839124]
[1764179941272,8.42839124,140.98,140.92,0.69]
[1764179941580,9.47994492,140.97,140.92,4.57839124]
[1764179941974,0.67,140.96,140.93,4.57839124]
[1764179942486,0.67,140.98,140.94,4.57839124]
[1764179942686,0.67,141.01,140.97,2.93384389]
[1764179942900,0.67,141.01,140.98,2.93384389]
[1764179943675,16.00113915,141.02,140.99,2.93384389]
[1764179943982,7.86119423,141.02,140.99,2.93384389]
[1764179944180,24.91917607,141.02,140.95,50.0]
[1764179944386,7.09219858,141.0,140.96,0.69]
[1764179944582,7.09219858,141.0,140.98,2.93384389]
[1764179944904,7.09219858,141.0,140.96,7.78418698]
[1764179945107,0.1,141.02,140.99,2.93384389]
[1764179945315,7.86123021,141.02,140.96,7.78418951]
[1764179945513,7.86123021,141.02,140.99,2.93384389]
[1764179946091,0.71,141.01,140.99,2.93384389]
[1764179946294,0.1,141.02,141.0,3.63384389]
[1764179946508,0.1,141.02,141.01,2.93384389]
[1764179946712,0.1,141.02,141.01,3.63384389]
[1764179948642,0.1,141.02,141.01,7.67771401]
[1764179948822,0.1,141.02,141.01,14.76940963]
[1764179949114,0.1,141.02,141.01,64.76940963]
[1764179949826,7.90119273,141.02,140.97,0.7]
[1764179949992,7.90119273,141.02,140.97,3.18]
[1764179950192,7.90119273,141.02,140.97,10.97368561]
[1764179950422,0.71,141.01,140.97,3.88]
[1764179950604,7.09219858,141.0,140.99,6.97771401]
[1764179951318,7.80188932,141.01,140.99,6.97771401]
[1764179951514,0.1,141.02,140.97,10.27370714]
[1764179951816,0.71,141.01,140.97,3.88]
[1764179952001,7.90121236,141.02,140.98,0.7]
[1764179952202,0.1,141.02,141.0,6.97771401]
[1764179952514,0.81,141.02,141.0,6.97771401]
[1764179952694,0.1,141.02,141.01,7.67771401]
[1764179953405,0.1,141.02,141.01,6.97771401]
[1764179953607,7.90119273,141.02,141.01,6.97771401]
[1764179953799,7.19119273,141.02,141.01,6.97771401]
[1764179954214,7.19119273,141.02,141.0,10.15771401]
[1764179954215,7.90119273,141.02,141.0,10.15771401]
[1764179954420,0.71,141.01,141.0,10.15771401]
[1764179954617,0.71,141.01,141.0,6.97771401]
[1764179954917,7.09169562,141.01,140.98,0.7]
[1764179955118,0.71,141.01,140.96,57.79421006]
[1764179955319,0.1,141.02,141.0,6.97771401]
[1764179955616,0.1,141.02,141.01,6.97771401]
[1764179956513,0.1,141.02,141.01,7.67771401]
[1764179956716,0.1,141.02,141.01,14.76940963]
[1764179957015,0.1,141.02,141.01,6.97771401]
[1764179959418,0.81,141.02,140.96,7.67771401]
[1764179959620,8.80994492,141.01,140.96,3.18]
[1764179959821,8.80994492,140.98,140.9,0.7]
[1764179960041,8.80994492,140.96,140.89,3.18]
[1764179960326,8.80994492,140.96,140.89,6.97771401]
[1764179960327,8.80994492,140.94,140.89,6.97771401]
[1764179960538,15.78765893,140.94,140.89,6.97771401]
[1764179960703,7.0962248,140.92,140.89,6.97771401]
[1764179961009,7.0962248,140.92,140.87,3.88]
[1764179961206,7.09591729,140.93,140.91,6.97771401]
[1764179961526,7.09591729,140.93,140.9,6.97771401]
[1764179961527,7.80591729,140.93,140.9,6.97771401]
[1764179961820,0.71,140.92,140.88,6.97771401]
[1764179962822,0.71,140.92,140.9,6.97771401]
[1764179963124,7.80630245,140.92,140.85,3.88]
[1764179963424,7.80630245,140.92,140.81,0.2]
[1764179963425,8.80994492,140.87,140.81,0.2]
[1764179963649,8.80994492,140.85,140.81,0.2]
[1764179963825,8.80994492,140.83,140.81,0.2]
[1764179964122,3.89,140.85,140.82,6.97771401]
[1764179964324,8.80994492,140.84,140.81,0.2]
[1764179964524,9.51994492,140.84,140.81,7.17771401]
[1764179964819,16.62070406,140.84,140.81,7.17771401]
[1764179965021,9.51994492,140.84,140.82,6.97771401]
[1764179965406,16.62026438,140.84,140.82,6.97771401]
[1764179965612,16.62026438,140.84,140.81,7.17771401]
[1764179966423,9.51994492,140.84,140.81,7.17771401]
[1764179966826,16.62046683,140.84,140.81,7.17771401]
[1764179967009,0.71,140.83,140.81,0.2]
[1764179967203,0.71,140.83,140.81,7.17771401]
[1764179968228,0.71,140.83,140.81,0.2]
[1764179968415,11.15203715,140.83,140.81,0.2]
[1764179968723,7.26203715,140.82,140.81,0.2]
[1764179968916,15.07330117,140.82,140.81,0.2]
[1764179969225,8.09558716,140.82,140.81,0.2]
[1764179969731,15.07330117,140.82,140.81,0.2]
[1764179969935,8.09558716,140.82,140.81,0.2]
[1764179970820,10.28092291,140.83,140.81,7.17771401]
[1764179971321,7.10041871,140.84,140.82,6.97771401]
[1764179971521,0.71,140.91,140.83,6.97771401]
[1764179971724,6.97771401,140.88,140.81,0.2]
[1764179971903,7.68771401,140.9,140.81,50.9]
[1764179972109,3.89,140.89,140.81,50.9]
[1764179972628,8.80994492,140.88,140.82,0.7]
[1764179972932,8.80994492,140.88,140.86,6.97771401]
[1764179973116,0.71,140.87,140.82,0.7]
[1764179973320,0.71,140.87,140.81,3.38]
[1764179973517,8.80994492,140.86,140.82,6.97771401]
[1764179974032,8.80994492,140.86,140.81,0.2]
[1764179974033,0.71,140.85,140.81,7.17771401]
[1764179974229,0.71,140.85,140.82,6.97771401]
[1764179974815,0.71,140.85,140.81,0.2]
[1764179975128,15.91020052,140.84,140.82,6.97771401]
[1764179975424,7.1002556,140.84,140.83,6.97771401]
[1764179975630,7.80983278,140.85,140.83,6.97771401]
[1764179976024,7.09983278,140.85,140.81,0.2]
[1764179976224,7.80983278,140.85,140.83,6.97771401]
[1764179977531,7.80983278,140.85,140.81,0.2]
[1764179977738,7.80983278,140.85,140.83,6.97771401]
[1764179978116,7.80983278,140.85,140.81,0.2]
[1764179978313,8.80994492,140.89,140.84,6.97771401]
[1764179978516,17.74013474,140.93,140.88,6.97771401]
[1764179978715,7.0962248,140.92,140.91,6.97771401]
[1764179979135,7.8062248,140.92,140.86,3.88]
[1764179979334,0.71,140.91,140.89,6.97771401]
[1764179979533,7.80708542,140.91,140.89,6.97771401]
[1764179979716,7.80708542,140.91,140.9,6.97771401]
[1764179980423,7.80708542,140.91,140.87,0.7]
[1764179980737,24.83678682,140.92,140.9,6.97771401]
[1764179980946,7.8062248,140.92,140.9,6.97771401]
[1764179981119,0.71,140.91,140.9,6.97771401]
[1764179981514,9.51994492,140.91,140.86,3.18]
[1764179981821,12.69994492,140.91,140.88,6.97771401]
[1764179982220,0.71,140.9,140.88,6.97771401]
[1764179982528,0.71,140.9,140.85,0.7]
[1764179982718,0.71,140.9,140.88,6.97771401]
[1764179982925,7.09773582,140.89,140.88,6.97771401]
[1764179984839,7.79773582,140.89,140.88,6.97771401]
[1764179985242,25.54207537,140.89,140.86,6.97771401]
[1764179985742,0.7,140.88,140.83,0.72]
[1764179985924,0.7,140.88,140.85,6.97771401]
[1764179986125,7.09773582,140.89,140.87,6.97771401]
[1764179986430,7.79773582,140.89,140.87,6.97771401]
[1764179986744,8.80994492,140.87,140.81,0.92]
[1764179986952,8.80994492,140.87,140.86,6.97771401]
[1764179986953,7.09874352,140.87,140.86,6.97771401]
[1764179987526,7.79874352,140.87,140.86,6.97771401]
[1764179988135,7.09874352,140.87,140.86,6.97771401]
[1764179990564,8.80994492,140.86,140.81,0.2]
[1764179990729,16.308864,140.89,140.85,6.97771401]
[1764179990730,7.09773582,140.89,140.85,6.97771401]
[1764179990930,7.09773582,140.89,140.88,6.97771401]
[1764179991327,12.68994492,140.89,140.86,6.97771401]
[1764179991573,0.7,140.88,140.82,66.308864]
[1764179991846,8.80994492,140.87,140.83,6.97771401]
[1764179992049,8.80994492,140.87,140.81,0.2]
[1764179992050,12.27426806,140.89,140.86,6.97771401]
[1764179992252,12.68994492,140.89,140.86,6.97771401]
[1764179992449,7.09823963,140.88,140.86,6.97771401]
[1764179992943,7.79823963,140.88,140.86,6.97771401]
[1764179994233,25.54383872,140.88,140.85,6.97771401]
[1764179994634,28.72383872,140.88,140.86,6.97771401]
[1764179995050,28.72383872,140.88,140.83,7.82069557]
[1764179995255,28.72383872,140.88,140.86,6.97771401]
[1764179996237,28.72383872,140.88,140.85,6.97771401]
[1764179997029,28.72383872,140.88,140.84,0.72]
[1764179997352,8.80994492,140.87,140.86,6.97771401]
[1764179997749,7.09823963,140.88,140.86,6.97771401]
[1764179998059,10.27784421,140.89,140.87,7.69771401]
[1764179998353,11.98994492,140.91,140.88,7.69771401]
[1764179998535,19.08667332,140.91,140.88,7.69771401]
[1764179999455,19.78667332,140.91,140.88,6.97771401]
[1764179999847,19.08667332,140.91,140.88,7.69771401]
[1764180000232,19.08667332,140.91,140.89,7.69771401]
[1764180000438,17.008864,140.93,140.88,14.07593343]
[1764180000439,7.09604778,140.93,140.88,14.07593343]
[1764180000634,7.09471443,140.95,140.92,6.97771401]
[1764180000841,7.79439741,140.96,140.94,6.97771401]
[1764180001138,0.7,140.99,140.95,6.97771401]
[1764180001339,7.07771401,141.04,140.89,100.0]
[1764180001340,7.79169562,141.01,140.98,6.97771401]
[1764180001539,10.97169562,141.01,140.98,6.97771401]
[1764180002071,7.19137549,141.02,141.0,6.97771401]
[1764180002238,7.19137549,141.02,141.01,6.97771401]
[1764180002239,0.1,141.02,141.01,6.97771401]
[1764180002579,0.1,141.02,141.01,12.14845042]
[1764180002872,0.1,141.02,140.99,3.18]
[1764180003071,0.1,141.02,141.01,12.14845042]
[1764180003268,0.1,141.04,141.02,50.0]
[1764180003434,0.1,141.04,141.03,16.04845042]
[1764180004341,312.90300482,141.07,141.04,50.0]
[1764180004550,312.90300482,141.07,141.05,0.72]
[1764180004844,311.72300482,141.07,141.06,62.14845042]
[1764180005038,311.72300482,141.07,141.06,12.14845042]
[1764180005659,311.72300482,141.07,141.06,62.14845042]
[1764180005961,311.72300482,141.07,141.02,50.0]
[1764180006181,337.23338263,141.07,141.02,3.18]
[1764180006458,0.7,141.06,141.03,12.14845042]
[1764180006658,0.7,141.06,141.01,12.14845042]
[1764180006862,0.7,141.06,141.0,3.18]
[1764180006863,0.7,141.06,141.03,12.14845042]
[1764180007041,0.7,141.06,141.04,12.14845042]
[1764180007240,339.71338263,141.07,141.04,12.14845042]
[1764180007660,318.81168419,141.07,141.0,65.32845042]
[1764180007855,311.72300482,141.07,141.0,65.32845042]
[1764180008048,311.72300482,141.07,141.06,12.14845042]
[1764180008487,319.48168419,141.07,141.05,12.14845042]
[1764180008768,311.72300482,141.07,141.04,3.18]
[1764180008972,311.72300482,141.07,141.06,12.14845042]
[1764180009145,312.39300482,141.07,141.06,12.14845042]
[1764180009476,311.72300482,141.07,141.06,12.14845042]
[1764180009850,311.72300482,141.07,141.04,3.18]
[1764180010081,311.72300482,141.07,141.06,12.14845042]
[1764180010376,318.81168419,141.07,141.06,12.14845042]
[1764180010572,311.72300482,141.07,141.06,12.14845042]
[1764180010746,329.44470326,141.07,141.04,3.18]
[1764180010950,336.53338263,141.07,141.05,12.14845042]
[1764180011473,337.20338263,141.07,141.06,12.14845042]
[1764180011677,337.20338263,141.07,141.04,3.18]
[1764180012081,319.48168419,141.07,141.06,12.14845042]
[1764180012377,319.48168419,141.07,141.05,12.14845042]
[1764180012747,0.67,141.06,140.98,100.0]
[1764180013073,0.67,141.06,141.03,12.14845042]
[1764180013261,336.53338263,141.07,141.05,12.14845042]
[1764180013453,336.53338263,141.07,141.06,12.14845042]
[1764180013984,337.20338263,141.07,141.06,12.14845042]
[1764180014191,312.39300482,141.07,141.06,12.14845042]
[1764180014475,311.72300482,141.07,141.06,12.14845042]
[1764180015779,311.22300482,141.07,141.06,12.14845042]
[1764180017187,311.22300482,141.07,141.03,69.488864]
[1764180017480,318.31172613,141.07,141.03,19.488864]
[1764180017685,318.31172613,141.07,141.06,12.14845042]
[1764180017887,318.31168419,141.07,141.06,12.14845042]
[1764180018385,319.03168419,141.07,141.03,3.18]
[1764180018550,0.72,141.06,141.05,12.14845042]
[1764180019455,0.72,141.06,141.04,12.14845042]
[1764180019680,0.72,141.06,141.03,12.14845042]
[1764180019996,3.9,141.06,141.04,12.14845042]
[1764180020187,3.9,141.06,141.05,12.14845042]
[1764180020385,0.72,141.06,141.05,12.14845042]
[1764180020579,7.8091819,141.06,141.01,7.09169448]
[1764180020781,7.8091819,141.06,141.05,12.14845042]
[1764180020998,0.72,141.05,141.04,12.14845042]
[1764180021491,0.72,141.05,141.0,3.18]
[1764180021662,0.72,141.05,141.02,12.14845042]
[1764180021859,3.9,141.05,141.01,12.14845042]
[1764180022072,21.67839534,141.04,140.99,12.14845042]
[1764180022269,3.18,141.03,140.99,12.14845042]
[1764180022476,0.72,141.02,140.99,12.14845042]
[1764180022676,7.09169562,141.01,140.96,7.09403363]
[1764180022881,7.09169562,141.01,140.99,12.14845042]
[1764180023088,7.81169562,141.01,140.99,12.14845042]
[1764180023269,0.72,141.0,140.99,12.14845042]
[1764180023594,3.9,141.0,140.97,12.14845042]
[1764180023776,8.80994492,140.99,140.91,0.2]
[1764180023970,12.14845042,140.98,140.91,0.2]
[1764180024166,3.18,140.97,140.93,12.14845042]
[1764180024381,8.80994492,140.96,140.93,12.14845042]
[1764180024674,3.9,140.97,140.91,0.2]
[1764180024675,7.09370788,140.97,140.95,12.14845042]
[1764180024879,7.09370788,140.97,140.91,50.2]
[1764180025078,7.09370788,140.97,140.96,12.14845042]
[1764180025471,7.81370788,140.97,140.96,12.14845042]
[1764180025673,0.72,140.97,140.96,12.14845042]
[1764180025874,0.72,140.97,140.91,57.29667718]
[1764180026073,0.72,140.97,140.96,12.14845042]
[1764180026273,3.9,141.0,140.96,12.14845042]
[1764180026481,3.18,141.0,140.99,12.14845042]
[1764180026865,7.09169853,141.01,140.99,12.14845042]
[1764180027065,0.72,141.0,140.99,12.14845042]
[1764180027382,0.72,141.0,140.98,12.14845042]
[1764180028890,0.72,141.0,140.99,12.14845042]
[1764180029094,7.8122117,141.0,140.99,12.14845042]
[1764180030070,0.72,141.0,140.99,12.14845042]
[1764180030300,7.09186639,141.01,140.99,12.14845042]
[1764180030495,12.14845042,141.06,140.96,10.27416453]
[1764180030496,10.27107409,141.03,141.0,12.14845042]
[1764180030681,0.72,141.04,140.99,3.18]
[1764180030883,0.72,141.04,141.03,12.14845042]
[1764180031171,7.81018718,141.04,141.02,12.14845042]
[1764180031393,11.98994492,141.03,140.99,12.14845042]
[1764180031576,11.98994492,141.03,140.95,3.18]
[1764180031577,12.43277356,141.02,140.95,3.18]
[1764180031784,8.80994492,141.01,140.97,12.14845042]
[1764180031982,3.18,141.0,140.97,12.14845042]
[1764180032193,3.9,141.0,140.95,3.18]
[1764180032393,0.72,140.99,140.95,12.14845042]
[1764180032594,8.80994492,140.98,140.95,12.14845042]
[1764180032804,8.80994492,140.94,140.91,0.2]
[1764180032978,0.72,140.93,140.91,0.2]